Cogmind - Beta 14 @@@ ROGUE MODE // 2024.08.25 @ 15:26:24 Player: Gyro! Result: Destroyed by H-55 Commando with Assault Rifle Performance ------------- Evolutions (2) 1000 Regions Visited (4) 800 Robots Destroyed (40) 200 Value Destroyed (881) 881 Prototype IDs (5) 100 Alien Tech Used (0) 0 Bonus (101) 101 TOTAL SCORE: 3082 Bonus ------- High Alert Combat Kills 24 Follower Combat Kills 77 Cogmind --------- Core Integrity 0/550 Matter 300/300 Energy 100/100 System Corruption 0% Temperature Cool (0) Movement Core (150) Ox2 Location -8/Materials Parts ------- > --- POWER (2) -------- (None) > --- PROPULSION (2) --- (None) > --- UTILITY (4) ------ Small Storage Unit > --- WEAPON (3) ------- Advanced Beam Rifle > --- INVENTORY (8) ---- Light Ion Engine Heavy Armor Plating Heavy EM Shotgun Precision Beam Rifle Peak State ------------ > --- POWER ------------ Light Ion Engine Light Nuclear Core > --- PROPULSION ------- Aluminum Leg Aluminum Leg > --- UTILITY ---------- Disposable Heat Sink Disposable Heat Sink Small Storage Unit Signal Interpreter > --- WEAPON ----------- Precision Beam Rifle Precision Beam Rifle Precision Beam Rifle > --- INVENTORY -------- Light Ion Engine Aluminum Leg Aluminum Leg [Rating: 24] Favorites ----------- Power Ion Engine Engine Ion Engine Power Core Light Nuclear Core Propulsion Compact Wheel Leg Aluminum Leg Wheel Compact Wheel Utility Disposable Heat Sink Device Disposable Heat Sink Storage Small Storage Unit Processor Signal Interpreter Protection Power Shielding Weapon Precision Beam Rifle Energy Gun Precision Beam Rifle Energy Cannon Beam Cannon Ballistic Gun Assault Rifle Special Weapon Mining Laser Build | -11 -10 -9 -9 -8 ------- Run | Yrd Mat Mat Min Mat Slots Evolved 4 | . . 2 . 2 Power 1 | . . . . 1 Propulsion . | . . . . . Utility 2 | . . 2 . . Weapon 1 | . . . . 1 Parts Attached 55 | 6 10 17 2 20 Power 12 | 1 2 2 1 6 Engine 10 | 1 2 2 . 5 Core 2 | . . . 1 1 Reactor . | . . . . . Propulsion 13 | 2 1 7 . 3 Treads . | . . . . . Leg 5 | . . 2 . 3 Wheel 8 | 2 1 5 . . Hover . | . . . . . Flight . | . . . . . Utility 13 | 1 3 4 1 4 Device 5 | . 2 3 . . Storage 3 | 1 . . 1 1 Processor 1 | . . 1 . . Hackware . | . . . . . Protection 4 | . 1 . . 3 Artifact . | . . . . . Weapon 17 | 2 4 4 . 7 Energy Gun 11 | . . 4 . 7 Energy Cannon 2 | . 2 . . . Ballistic Gun 2 | 2 . . . . Ballistic Cannon . | . . . . . Launcher . | . . . . . Special Weapon 2 | . 2 . . . Impact Weapon . | . . . . . Slashing Weapon . | . . . . . Piercing Weapon . | . . . . . Special Melee Weapon . | . . . . . Unidentified Prototypes 2 | . . 1 . 1 Parts Lost 27 | . 4 9 . 14 Power 7 | . . 2 . 5 Propulsion 10 | . 1 4 . 5 Utility 5 | . 1 2 . 2 Weapon 5 | . 2 1 . 2 Highest Loss Streak 9 | . 2 6 . 9 To Critical Strikes . | . . . . . Average Slot Usage (%) 83 | . 87 90 97 50 Engine 9 | . 14 9 1 6 Core 1 | . . . 9 5 Leg 4 | . . 2 22 9 Wheel 16 | . 26 18 . . Device 18 | . 11 29 22 9 Storage 5 | . 8 . 8 7 Processor 5 | . . 11 11 1 Energy Gun 10 | . . 16 22 10 Energy Cannon 4 | . 11 2 . . Ballistic Gun 2 | . 8 . . . Special Weapon 1 | . 4 . . . Peak Build Rating 24 | 6 7 18 19 24 Average Rating 11 | 3 6 14 18 12 On Entrance 9 | . 6 5 16 19 Naked Turns . | . . . . . Heaviest Build 21 | 11 17 13 16 21 Greatest Support 32 | 32 32 32 20 20 Greatest Overweight (x) 3 | 1 . 2 . 3 Average Overweight (x) . | . . . . . Largest Inventory Capacity 8 | 8 8 5 8 8 Average Capacity 6 | 6 6 5 7 7 Most Carried 8 | 5 8 5 5 7 Average Carried 4 | 2 5 4 3 4 Final Capacity 8 | 8 5 5 8 8 Final Carried 5 | 3 4 2 5 5 Class Distribution -------------------- 76% | Mutant 23% | Scavenger-Mutant Dominant Class ---------------- Mutant | -10/Materials Mutant | -9/Materials Scavenger-Mutant | -9/Mines Mutant | -8/Materials Resources | -11 -10 -9 -9 -8 ----------- Run | Yrd Mat Mat Min Mat Matter Collected 672 | 218 125 145 28 156 Remotely . | . . . . . Salvage Created 1166 | . 310 420 98 338 Parts 67 | . 24 30 4 9 Haulers Intercepted 1 | . . . . 1 Recyclers Shooed . | . . . . . Parts Field Recycled . | . . . . . Retrieved Matter . | . . . . . Parts Self-Destructed . | . . . . . Prevented . | . . . . . Kills | -11 -10 -9 -9 -8 ------- Run | Yrd Mat Mat Min Mat Combat Hostiles Destroyed 31 | . 6 12 5 8 Guns 24 | . . 12 4 8 Cannons 6 | . 6 . . . Classes Destroyed 8 | . 4 2 . 2 Worker 1 | . . 1 . . Builder 3 | . 1 2 . . Hauler 1 | . . . . 1 Watcher 4 | . 2 1 . 1 Swarmer 15 | . 1 6 4 4 Grunt 14 | . 5 5 1 3 Duelist 1 | . . . . 1 Sentry 1 | . . 1 . . Best Kill Streak 4 | . 4 4 3 3 Combat Bots Only 4 | . 3 4 3 3 Max Kills in Single Turn 2 | . 2 1 1 2 Gunslinging 1 | . . . . 1 Exploded . | . . . . . Melee . | . . . . . Uniques/NPCs Destroyed . | . . . . . Combat | -11 -10 -9 -9 -8 -------- Run | Yrd Mat Mat Min Mat Hostile Shots Fired 345 | . 47 104 11 183 Missed 111 | . 15 29 4 63 Damage Taken 2892 | . 356 881 70 1585 Core 917 | . 97 252 8 560 Absorbed by Shields . | . . . . . Core Remaining (%) 65 | 100 61 . 35 . Volleys Fired 102 | . 37 32 8 25 Largest 3 | . 2 2 2 3 Hottest 183 | . 160 122 122 183 Shots Fired 186 | . 55 62 16 53 Gun 130 | . 1 60 16 53 Cannon 49 | . 47 2 . . Launcher . | . . . . . Special 7 | . 7 . . . Kinetic 1 | . 1 . . . Thermal 185 | . 54 62 16 53 Explosive . | . . . . . Electromagnetic . | . . . . . Robot Hit Streak 33 | . 11 12 10 33 Robot Miss Streak 4 | . 4 2 1 4 Penetration Max . | . . . . . Secondary Targets 4 | . . 1 1 2 Max Gunslinging Chain 1 | . . 1 1 1 Shots Hit Robots 122 | . 30 41 13 38 Core Hits 51 | . 11 18 5 17 Critical Kills . | . . . . . Critical Parts Destroyed . | . . . . . Critical Strikes 12 | . . 6 1 5 Burn 12 | . . 6 1 5 Melee Attacks . | . . . . . Impact . | . . . . . Slashing . | . . . . . Piercing . | . . . . . Sneak Attacks . | . . . . . Combat Hostiles . | . . . . . Follow-up Attacks . | . . . . . Damage Inflicted 2229 | . 592 707 225 705 Guns 1609 | . . 682 225 702 Cannons 559 | . 542 17 . . Explosions . | . . . . . Melee . | . . . . . Ramming 13 | . 2 8 . 3 Kinetic . | . . . . . Thermal 2216 | . 590 699 225 702 Explosive . | . . . . . Electromagnetic . | . . . . . Impact . | . . . . . Slashing . | . . . . . Piercing . | . . . . . Highest Corruption . | . . . . . Average Corruption . | . . . . . Corruption Purged . | . . . . . Corruption Blocked . | . . . . . Overload Shots . | . . . . . Overflow Damage 15 | . 15 . . . Projectiles 15 | . 15 . . . Explosions . | . . . . . Melee . | . . . . . Knockbacks . | . . . . . Impact . | . . . . . Kinetic . | . . . . . Secondary . | . . . . . Self-Inflicted Damage 2 | . 1 . . 1 Shots . | . . . . . Rammed 3 | . 1 . . 2 Targets Rammed 4 | . 1 1 . 2 Kicked 1 | . . 1 . . Crushed . | . . . . . Highest Temperature 415 | . 216 132 188 415 Average Temperature 80 | . 67 42 80 116 Received Heat Transfer 1137 | . 159 222 9 747 Siege Activations . | . . . . . Robots Corrupted . | . . . . . Combat Hostiles . | . . . . . Parts Fried . | . . . . . Impact Corruptions . | . . . . . Robots Melted 1 | . . . 1 . Combat Hostiles 1 | . . . 1 . Parts Melted 12 | . 1 6 1 4 Heat Transferred 5576 | . 1247 1961 555 1813 Parts Sabotaged . | . . . . . Parts Stolen . | . . . . . Parts Stripped . | . . . . . Power Chain Reactions . | . . . . . Alert | -11 -10 -9 -9 -8 ------- Run | Yrd Mat Mat Min Mat Peak Influence 477 | . 239 300 341 477 Initial 132 | . . 92 117 132 Average 172 | . 94 159 277 325 Maximum Alert Level 2 | . 1 1 1 2 Low Security (%) 60 | 100 83 75 4 11 Level 1 36 | . 16 24 95 72 Level 2 2 | . . . . 16 Level 3 . | . . . . . Level 4 . | . . . . . Level 5 . | . . . . . High Security . | . . . . . Max Security . | . . . . . Squads Dispatched 6 | . 2 2 . 2 Investigation 1 | . 1 . . . Extermination . | . . . . . Reinforcement 5 | . 1 2 . 2 Assault . | . . . . . Garrison . | . . . . . Intercept . | . . . . . Searches Triggered . | . . . . . Construction Impeded . | . . . . . Haulers Reinforced . | . . . . . Active Scanning Responses . | . . . . . Cargo Convoy Interrupts . | . . . . . Stealth | -11 -10 -9 -9 -8 --------- Run | Yrd Mat Mat Min Mat Distress Signals 6 | . 1 1 . 4 Communications Jammed . | . . . . . Distress Signals . | . . . . . Times Spotted 77 | . 19 23 5 30 Peak Tracking Total 8 | . 3 7 2 8 Tactical Retreats 11 | . 2 6 . 3 Traps | -11 -10 -9 -9 -8 ------- Run | Yrd Mat Mat Min Mat Traps Triggered 1 | . 1 . . . Indirectly . | . . . . . Trap Hack Attempts . | . . . . . Triggered . | . . . . . Disarmed . | . . . . . Reprogrammed . | . . . . . Reused . | . . . . . Traps Extracted . | . . . . . Installed . | . . . . . Triggered . | . . . . . Machines | -11 -10 -9 -9 -8 ---------- Run | Yrd Mat Mat Min Mat Machines Disabled 3 | . 1 1 . 1 Max in Single Turn 1 | . 1 1 . 1 Machines Repaired . | . . . . . Machines Dismantled . | . . . . . Machines Sabotaged . | . . . . . Overloaded Fab Kills . | . . . . . Hacking | -11 -10 -9 -9 -8 --------- Run | Yrd Mat Mat Min Mat Machines Accessed 6 | . 4 2 . . Terminals 6 | . 4 2 . . Fabricators . | . . . . . Repair Stations . | . . . . . Recycling Units . | . . . . . Scanalyzers . | . . . . . Garrison Access . | . . . . . Total Hacks 16 | . 12 4 . . Successful 8 | . 5 3 . . Failed 8 | . 7 1 . . Catastrophic . | . . . . . Database Lockouts . | . . . . . Manual . | . . . . . Terminals 16 | . 12 4 . . Fabricators . | . . . . . Repair Stations . | . . . . . Recycling Units . | . . . . . Scanalyzers . | . . . . . Garrison Access . | . . . . . Terminal Hacks 8 | . 5 3 . . Record 4 | . 3 1 . . Prototype ID Bank 2 | . 1 1 . . Alert Level 1 | . 1 . . . Registered Components 1 | . . 1 . . Fabricator Hacks . | . . . . . Repair Station Hacks . | . . . . . Recycling Unit Hacks . | . . . . . Scanalyzer . | . . . . . Garrison Access Hacks . | . . . . . Unauthorized Hacks . | . . . . . Terminals . | . . . . . Fabricators . | . . . . . Repair Stations . | . . . . . Recycling Units . | . . . . . Scanalyzers . | . . . . . Garrison Access . | . . . . . Data Cores Recovered . | . . . . . Used . | . . . . . Hacking Detections 4 | . 3 1 . . Full Trace Events 2 | . 2 . . . Feedback Events . | . . . . . Feedback Blocked . | . . . . . Robot Schematics Acquired . | . . . . . Robots Built . | . . . . . Authchips . | . . . . . Time . | . . . . . Total Robot Build Rating . | . . . . . Part Schematics Acquired . | . . . . . Parts Built . | . . . . . Authchips . | . . . . . Time . | . . . . . Total Part Build Rating . | . . . . . Parts Repaired . | . . . . . Time . | . . . . . Parts Recycled . | . . . . . Recycled Matter . | . . . . . Retrieved Matter . | . . . . . Retrieved Components . | . . . . . Parts Scanalyzed . | . . . . . Part Schematics Acquired . | . . . . . Parts Damaged . | . . . . . Bothacking | -11 -10 -9 -9 -8 ------------ Run | Yrd Mat Mat Min Mat Used RIF Installer . | . . . . . Robots Hacked . | . . . . . Non-combat . | . . . . . Combat . | . . . . . Robot Hacks Applied . | . . . . . Relay Couplers Released . | . . . . . Fabnet Peak Effective % . | . . . . . Robots Rewired . | . . . . . Allies Hacked . | . . . . . Hacks Repelled . | . . . . . Allies | -11 -10 -9 -9 -8 -------- Run | Yrd Mat Mat Min Mat Total Allies 2 | . . . 2 . Largest Group 2 | . . . 2 1 Highest-Rated Group 49 | . . . 49 31 Highest-Rated Ally 31 | . . . 31 31 Total Orders . | . . . . . Ally Attacks 32 | . . . 15 17 Total Damage 507 | . . . 212 295 Kills 9 | . . . 4 5 Allies Corrupted . | . . . . . Allies Melted . | . . . . . Intel | -11 -10 -9 -9 -8 ------- Run | Yrd Mat Mat Min Mat Robot Analysis Total . | . . . . . Derelict Logs Recovered . | . . . . . Drone Launches . | . . . . . Drone Recoveries . | . . . . . Exploration | -11 -10 -9 -9 -8 ------------- Run | Yrd Mat Mat Min Mat Turns Passed 2124 | 56 713 774 245 336 Spaces Moved 1615 | 42 556 666 176 175 Core 85 | 15 . 20 . 50 Treads . | . . . . . Legs 349 | . . 48 176 125 Wheels 1181 | 27 556 598 . . Hover . | . . . . . Flight . | . . . . . Fastest Speed 50 | 50 100 50 120 50 Average Speed 102 | 86 100 95 120 124 Slowest Speed 200 | 100 100 150 120 200 Overloaded Moves . | . . . . . Propulsion Burnouts . | . . . . . Robots Hopped . | . . . . . Cave-ins Triggered . | . . . . . Exploration Rate (%) 36 | 3 76 42 39 22 Regions Visited 4 Branch Regions 1 Pre-discovered Areas . | . . . . . Known Exits Taken 2 | . . 1 1 . Unknown Exits Taken 2 | 1 1 . . . Scrap Searched . | . . . . . Spaces Dug 4 | . 4 . . . Terrain Destroyed 5 | . 5 . . . Melee . | . . . . . Projectile 5 | . 5 . . . AOE . | . . . . . Terrain Rammed . | . . . . . Walls Destroyed . | . . . . . Machines Disabled . | . . . . . Actions | -11 -10 -9 -9 -8 --------- Run | Yrd Mat Mat Min Mat Total 1890 | 61 646 742 194 247 Wait 44 | 5 21 7 3 8 Move 1611 | 41 555 665 175 175 Hop . | . . . . . Pick Up 45 | 9 13 13 5 5 Fast Attach 5 | . . 2 . 3 Attach 41 | 6 6 11 1 17 Detach 13 | . 1 1 . 11 Swap 9 | . 4 4 1 . Drop 15 | . 7 6 1 1 Fire 102 | . 37 32 8 25 Melee . | . . . . . Ram 3 | . 1 . . 2 Kick 1 | . . 1 . . Crush . | . . . . . Escape Stasis . | . . . . . Rewire 1 | . 1 . . . Trap . | . . . . . Miscellaneous . | . . . . . Route ------- -11/Scrapyard -10/Materials (discovered 4 exits: *Mat x3 / [*Min]) -9/Materials (discovered 2 exits: *Mat / *Min) -9/Mines -8/Materials History --------- Turn | Location | Event 12 | -11/Scrapyard | Discovered new exit (range 13) 57 | -11/Scrapyard | Entered Materials 179 | -10/Materials | Discovered new exit (range 11) 309 | -10/Materials | Build established: Mutant 385 | -10/Materials | Discovered new exit (range 13) 617 | -10/Materials | Discovered new exit (range 13) 762 | -10/Materials | Discovered new exit (range 10) 770 | -10/Materials | Entered another Materials area 770 | -9/Materials | Evolved 2 slots: Utility x2 997 | -9/Materials | Discovered new exit (range 14) 1083 | -9/Materials | Discovered new exit (range 3) 1438 | -9/Materials | Core integrity fell below 50% 1456 | -9/Materials | Lost 6 parts (1p3n1u1w) 1543 | -9/Materials | Identified exit to Mines 1544 | -9/Materials | Entered Mines 1740 | -9/Mines | Build established: Scavenger-Mutant 1773 | -9/Mines | Discovered new exit (range 5) 1781 | -9/Mines | Identified exit to Materials 1789 | -9/Mines | Entered Materials 1789 | -8/Materials | Accompanied by 1 ally 1789 | -8/Materials | Evolved 2 slots: Power x1, Weapon x1 1794 | -8/Materials | Led the pair of lost Derelicts to an unsafe place 1987 | -8/Materials | Core integrity fell below 50% 1989 | -8/Materials | Lost 9 parts (2p4n1u2w) 2105 | -8/Materials | Core integrity fell below 20% 2125 | -8/Materials | Destroyed by H-55 Commando with Assault Rifle Last Messages --------------- 02087_ Lgt. Ion Engine destroyed. 02087_ G-47 Trooper suffers critical hit (Burn). 02087_ G-47 Trooper destroyed. 02093_ K-01 Serf collects debris. 02097_ Lgt. Nuclear Core destroyed. 02097_ Acquired 6 matter. 02099_ Slammed into S-10 Pest. 02100_ Acquired 45 matter. 02100_ K-01 Serf collects debris. 02100_ Slammed into S-10 Pest. 02105_ K-01 Serf collects debris. 02107_ W-25 Informer sends out distress signal. 02108_ K-01 Serf collects debris. 02114_ ALERT: Suspicious intruders detected, dispatching Specialist reinforcements to area. 02115_ K-01 Serf collects debris. 02115_ Acquired Prototype Energy Gun. 02122_ Slug penetrates Electrolysis Chamber. 02122_ Electrolysis Chamber disabled. 02125_ Penetrated by Slug. Map ----- +----------------------------------------------------+ | | | | | | | | | | | ????????????????????????????????????????????? | | ????????????????????????????????????????????? | | ????????????????????????????????????????????? | | ????????????????????????????????????????????? | | ????????????????????????????????????????????? | | ????????????????????????????????????????????? | | ???? ???????????????????????????????????????? | | ???# ???????????????????????????????????????? | | ???# #??????????????????????????????????????? | | #### #???????????? ?????????????????????????? | | ! #############+##???????????????????????? | | % ####????????????????????? | | % ????????????????????? | | """" """" """ #?????????????????????? | | """ """" """ #?????????????????????? | | """" """" """ #?#####+#####?????????? | | ^ #?# #?????????? | | #?# #?H???????? | | #?# #?????????? | | #?# * +?????????? | | % #?#@ h #?????????? | | "%% [[!###s " """ #?????????? | | ###+####+#######% [%[ + """ """ ??????????? | | # ????# ![ ### """ """???????????? | | ! # #???# ###########???????????? | | !! # #???# !!#?????????????????? | | !! # #???# !!#?????????????????? | | # #???# [[#?????????????????? | | """ [ # #???# [[#?????????????????? | | """ # ######/###/# ]]#?????????????????? | | """ ###### # ]]#?????????????????? | | #????#=% #####?????????????????? | | ########????#%""""""" #?????????????????????? | | ????????????#[ """""" #?????????????????????? | | ????????????# """"""" #?????????????????????? | | ????????????# """"""" #?????????????????????? | | ????????????#%""""""" #?????????????????????? | | ????????????#[ #?????????????????????? | | ????????????###########?????????????????????? | | ????????????????????????????????????????????? | | ????????????????????????????????????????????? | | ????????????????????????????????????????????? | | ????????????????????????????????????????????? | | ????????????????????????????????????????????? | | ????????????????????????????????????????????? | +----------------------------------------------------+ Best States ------------- Heat Dissipation 45 Coolant Potential 100 Energy Generation 19 Energy Capacity 250 Matter Stores 300 Matter Capacity 300 Sight Range 16 Robot Scan Range 14 Terrain Scan Density 10 Armor Coverage 600 Power Shielding 33 Evasion (%) 55 Item Schematics ----------------- None Robot Schematics ------------------ None Fabricated ------------ Nothing Alien Tech Used ----------------- None Achievements -------------- It's Just You Challenges ------------ None Game ------ Seed PointSubdwellerClaw Manual? 0 Play Time 00:47:07 Cumulative 12.9 hours Start 2024.08.25 @ 14:39:16 End 2024.08.25 @ 15:26:24 Sessions 1 Manual Loads 0 Difficulty Rogue Special Mode None Game No. 15 Rogue 15 Adventurer 0 Explorer 0 Win Type - Total 0 Types 0/0/0/0/0/0/0/0/0 Lore% 3 Gallery% 13 Achievement% 14 Wizard Run 0 Options --------- Layout 1 ASCII 0 Keyboard 0 Movement Numpad Keybinds 0 Fullscreen 2 Font 24/Smallcaps Map View 50x35 Zoom Use 4% Tactical HUD 1 Map Filters NONE Filters NONE Steam 1 RUN: 852bf298-0a8a-4eb6-a885-fcfabaae3c16